bitfinex-derivatives/quotes_BTCF0:USTF0_20250322
["timestamp","ask_amount","ask_price","bid_price","bid_amount"]
[1742670191871,0.00088,84281.0,84280.0,0.1205934]
[1742670193161,0.00188,84281.0,84280.0,0.1205934]
[1742670193861,0.00088,84281.0,84280.0,0.1205934]
[1742670194472,0.00288,84281.0,84280.0,0.1266134]
[1742670194668,0.00288,84281.0,84280.0,0.2235134]
[1742670195370,0.00088,84281.0,84280.0,0.2235134]
[1742670201359,0.1186622,84288.0,84282.0,0.1186701]
[1742670201562,0.1186622,84288.0,84287.0,0.3608]
[1742670201762,0.1186622,84288.0,84287.0,0.36272]
[1742670201963,0.1186622,84288.0,84287.0,0.37992]
[1742670202168,0.2373136,84288.0,84287.0,0.37992]
[1742670203172,0.2393136,84288.0,84287.0,0.37992]
[1742670204165,0.2393136,84288.0,84287.0,0.42737]
[1742670204763,0.2413136,84288.0,84287.0,0.42737]
[1742670205174,0.2373136,84288.0,84287.0,0.44799]
[1742670205375,0.2413136,84288.0,84287.0,0.44799]
[1742670206662,0.1126,84292.0,84287.0,0.44799]
[1742670206867,0.1186578,84291.0,84288.0,0.0958]
[1742670207068,0.1186607,84289.0,84288.0,0.09776]
[1742670207770,0.23730084,84289.0,84288.0,0.09776]
[1742670208076,0.23730084,84289.0,84288.0,0.10378]
[1742670208867,0.23930084,84289.0,84288.0,0.10378]
[1742670209274,0.24130084,84289.0,84288.0,0.10378]
[1742670213380,0.24130084,84289.0,84288.0,0.46458]
[1742670215483,0.24130084,84289.0,84288.0,0.46769]
[1742670215484,0.1186607,84289.0,84288.0,0.46769]
[1742670215784,0.23730084,84289.0,84288.0,0.46769]
[1742670220673,0.1126,84293.0,84288.0,0.46769]
[1742670220872,0.23730084,84289.0,84288.0,0.46769]
[1742670221286,0.1186607,84289.0,84288.0,0.46769]
[1742670221476,0.23730084,84289.0,84288.0,0.46769]
[1742670222478,0.23930084,84289.0,84288.0,0.46769]
[1742670224090,0.23930084,84289.0,84288.0,0.51514]
[1742670224292,0.24130084,84289.0,84288.0,0.51514]
[1742670225900,0.24130084,84289.0,84288.0,0.56618]
[1742670227796,0.24130084,84289.0,84288.0,0.20538]
[1742670227998,0.24130084,84289.0,84288.0,0.56618]
[1742670228190,0.24130084,84289.0,84288.0,0.20538]
[1742670228392,0.24130084,84289.0,84288.0,0.56618]
[1742670229001,0.24130084,84289.0,84288.0,0.58338]
[1742670235893,0.24130084,84289.0,84288.0,0.22258]
[1742670236403,0.24130084,84289.0,84288.0,0.58338]
[1742670237397,0.002,84289.0,84288.0,0.58338]
[1742670237603,0.1186607,84289.0,84288.0,0.604]
[1742670237901,0.23730084,84289.0,84288.0,0.604]
[1742670239396,0.24616189,84289.0,84288.0,0.604]
[1742670242093,0.24616189,84289.0,84288.0,0.2432]
[1742670242299,0.24616189,84289.0,84288.0,0.604]
[1742670243509,0.0593261,84296.0,84288.0,0.604]
[1742670243510,0.11256,84296.0,84288.0,0.604]
[1742670243698,0.2312109,84296.0,84295.0,0.3608]
[1742670243899,0.2312109,84296.0,84295.0,0.36276]
[1742670244397,0.34985104,84296.0,84295.0,0.36276]
[1742670244599,0.41117714,84296.0,84295.0,0.36276]
[1742670245103,0.41417714,84296.0,84295.0,0.00196]
[1742670245304,0.41417714,84296.0,84295.0,0.3608]
[1742670245498,0.41417714,84296.0,84295.0,0.36272]
[1742670246209,0.41217714,84296.0,84295.0,0.36584]
[1742670246507,0.41617714,84296.0,84295.0,0.36584]
[1742670247008,0.41617714,84296.0,84295.0,0.37185]
[1742670247210,0.42493312,84296.0,84295.0,0.01105]
[1742670247405,0.42493312,84296.0,84295.0,0.36993]
[1742670247608,0.42493312,84296.0,84295.0,0.4193]
[1742670254514,0.42493312,84296.0,84295.0,0.43992]
[1742670257511,0.11256,84297.0,84295.0,0.43992]
[1742670257711,0.2905342,84297.0,84296.0,0.0971]
[1742670257911,0.2905342,84297.0,84296.0,0.09906]
[1742670258512,0.40916449,84297.0,84296.0,0.11626]
[1742670259408,0.41516449,84297.0,84296.0,0.11626]
[1742670259998,0.41616449,84297.0,84296.0,0.11626]
[1742670260214,0.42492492,84297.0,84296.0,0.11626]
[1742670261206,0.42492492,84297.0,84296.0,0.47706]
[1742670262915,0.42492492,84297.0,84296.0,0.48018]
[1742670264617,0.11256,84298.0,84296.0,0.48018]
[1742670264817,0.1186495,84297.0,84296.0,0.48018]
[1742670265016,0.23727838,84297.0,84296.0,0.48018]
[1742670265219,0.1186495,84297.0,84296.0,0.48018]
[1742670265608,0.23727838,84297.0,84296.0,0.48018]
[1742670266618,0.24027838,84297.0,84296.0,0.48018]
[1742670266816,0.24027838,84297.0,84296.0,0.11938]
[1742670267114,0.24027838,84297.0,84296.0,0.48018]
[1742670271519,0.24027838,84297.0,84296.0,0.11938]
[1742670271725,0.24027838,84297.0,84296.0,0.48018]
[1742670275726,0.24027838,84297.0,84296.0,0.52763]
[1742670276126,0.24027838,84297.0,84296.0,0.54825]
[1742670278426,0.24027838,84297.0,84296.0,0.55426]
[1742670280427,0.11256,84301.0,84296.0,0.55426]
[1742670280723,0.23727838,84297.0,84296.0,0.55426]
[1742670281226,0.1186495,84297.0,84296.0,0.55426]
[1742670281527,0.23727838,84297.0,84296.0,0.55426]
[1742670286528,0.23727838,84297.0,84296.0,0.60531]
[1742670317965,0.2312766,84297.0,84296.0,0.60531]
[1742670329870,0.2312766,84297.0,84296.0,0.24451]
[1742670330068,0.2312766,84297.0,84296.0,0.60531]
[1742670349789,0.2312766,84297.0,84296.0,0.24451]
[1742670349996,0.2312766,84297.0,84296.0,0.60531]
[1742670364802,0.11862888,84297.0,84296.0,0.60531]
[1742670365108,0.23727838,84297.0,84296.0,0.60531]
[1742670365299,0.1186495,84297.0,84296.0,0.60531]
[1742670366201,0.23727838,84297.0,84296.0,0.60531]
[1742670385019,0.23727838,84297.0,84296.0,0.24451]
[1742670385218,0.23727838,84297.0,84296.0,0.60531]
[1742670392027,0.11862888,84297.0,84296.0,0.60531]
[1742670392229,0.23727838,84297.0,84296.0,0.60531]
[1742670392427,0.1186495,84297.0,84296.0,0.60531]
[1742670392831,0.23727838,84297.0,84296.0,0.60531]
[1742670405337,0.23727838,84297.0,84296.0,0.24451]
[1742670405527,0.23727838,84297.0,84296.0,0.60531]
[1742670424243,0.11862888,84297.0,84296.0,0.60531]
[1742670424746,0.1186485,84298.0,84296.0,0.60531]
[1742670424949,0.11862888,84297.0,84296.0,0.58499]
[1742670425140,0.11862888,84297.0,84296.0,0.39556]
[1742670425437,0.23727838,84297.0,84296.0,0.39556]
[1742670425836,0.1186495,84297.0,84296.0,0.39556]
[1742670426242,0.23727768,84297.0,84296.0,0.39556]
[1742670427450,0.23727768,84297.0,84296.0,0.44663]
[1742670427642,0.23727768,84297.0,84296.0,0.46725]
[1742670427950,0.23727768,84297.0,84296.0,0.5147]
[1742670428247,0.23727768,84297.0,84296.0,0.52069]
[1742670428448,0.23727768,84297.0,84296.0,0.5379]
[1742670428947,0.23727768,84297.0,84296.0,0.54106]
[1742670432749,0.86204,84320.0,84300.0,0.0593226]
[1742670432949,0.11248,84317.0,84303.0,0.479441]
[1742670433251,0.2311013,84317.0,84316.0,0.3608]
[1742670433450,0.2311013,84317.0,84316.0,0.3628]
[1742670433654,0.2311013,84317.0,84316.0,0.3608]
[1742670433844,0.34972244,84317.0,84316.0,0.3608]
[1742670434242,0.23110114,84317.0,84316.0,0.3608]
[1742670434447,0.253454,84317.0,84316.0,0.3608]
[1742670434648,0.253454,84317.0,84316.0,0.36276]
[1742670435846,0.253454,84317.0,84316.0,0.3608]
[1742670436646,0.253454,84317.0,84316.0,0.36276]
[1742670440062,0.3720753,84317.0,84316.0,0.36276]
[1742670440363,0.253454,84317.0,84316.0,0.3608]
[1742670440547,0.253454,84317.0,84316.0,0.3628]
[1742670441147,0.3720753,84317.0,84316.0,0.3628]
[1742670441352,0.3720753,84317.0,84316.0,0.3608]
[1742670442065,0.253454,84317.0,84316.0,0.3608]
[1742670442263,0.3720753,84317.0,84316.0,0.36272]
[1742670442563,0.253454,84317.0,84316.0,0.3608]
[1742670442759,0.253454,84317.0,84316.0,0.36272]
[1742670442965,0.3720753,84317.0,84316.0,0.36272]
[1742670445064,0.3720753,84317.0,84316.0,0.40882]
[1742670446464,0.253454,84317.0,84316.0,0.40882]
[1742670446766,0.3720753,84317.0,84316.0,0.40882]
[1742670448770,0.3720753,84317.0,84316.0,0.41481]
[1742670448971,0.3720753,84317.0,84316.0,0.46225]
[1742670451971,0.3720753,84317.0,84316.0,0.10461]
[1742670453465,0.3720753,84317.0,84316.0,0.12523]
[1742670456770,0.3720753,84317.0,84316.0,0.14243]
[1742670460373,0.0593118,84316.0,84296.0,0.05107]
[1742670460566,0.1186439,84301.0,84300.0,0.36216]
[1742670460779,0.2324039,84301.0,84300.0,0.36216]
[1742670461180,0.35100464,84301.0,84300.0,0.36216]
[1742670461480,0.43680464,84301.0,84300.0,0.36216]
[1742670461678,0.43680464,84301.0,84300.0,0.36316]
[1742670461983,0.43680464,84301.0,84300.0,0.36416]
[1742670463499,0.43680464,84301.0,84300.0,0.36316]
[1742670463702,0.43680464,84301.0,84300.0,0.36416]
[1742670464200,0.43680464,84301.0,84300.0,0.36316]
[1742670464497,0.43680464,84301.0,84300.0,0.36416]
[1742670469197,0.43680464,84301.0,84300.0,0.41523]
[1742670471190,0.43680464,84301.0,84300.0,0.05443]
[1742670471397,0.43680464,84301.0,84300.0,0.41523]
[1742670473594,0.43680464,84301.0,84300.0,0.05443]
[1742670474812,0.43680464,84301.0,84300.0,0.09763]
[1742670475509,0.43680464,84301.0,84300.0,0.09663]
[1742670476098,0.43680464,84301.0,84300.0,0.09563]
[1742670490714,0.35100464,84301.0,84300.0,0.09563]
[1742670493617,0.39710464,84301.0,84300.0,0.09563]
[1742670495518,0.44290464,84301.0,84300.0,0.09563]
[1742670501419,0.35100464,84301.0,84300.0,0.09563]
[1742670502315,0.35100464,84301.0,84300.0,0.14213]
[1742670504927,0.44110464,84301.0,84300.0,0.14213]
[1742670514223,0.32246074,84301.0,84300.0,0.14213]
[1742670514427,0.44110464,84301.0,84300.0,0.14213]
[1742670518430,0.32246074,84301.0,84300.0,0.14213]
[1742670518837,0.44110464,84301.0,84300.0,0.14213]
[1742670520448,0.44110464,84301.0,84300.0,0.50293]
[1742670523734,0.23236074,84301.0,84300.0,0.50293]
[1742670526441,0.11992074,84301.0,84300.0,0.50293]
[1742670526743,0.23236074,84301.0,84300.0,0.50293]
[1742670527140,0.27666074,84301.0,84300.0,0.50293]
[1742670532549,0.39530464,84301.0,84300.0,0.50293]
[1742670532749,0.44130464,84301.0,84300.0,0.50293]
[1742670534353,0.32266074,84301.0,84300.0,0.50293]
[1742670538049,0.44130464,84301.0,84300.0,0.50293]
[1742670546558,0.44130464,84301.0,84300.0,0.14213]
[1742670546768,0.44130464,84301.0,84300.0,0.50293]
[1742670557277,0.44130464,84301.0,84300.0,0.55037]
[1742670566779,0.44130464,84301.0,84300.0,0.49794]
[1742670566970,0.44130464,84301.0,84300.0,0.48450841]
[1742670572488,0.44130464,84301.0,84300.0,0.12370841]
[1742670573986,0.44130464,84301.0,84300.0,0.48450841]
[1742670579505,0.44130464,84301.0,84293.0,8e-05]
[1742670579684,0.0593275,84293.0,84286.0,0.0457]
[1742670579989,0.1186622,84288.0,84285.0,0.04548]
[1742670580186,0.1193022,84288.0,84286.0,0.0457]
[1742670580582,0.1193022,84288.0,84287.0,0.04587457]
[1742670580786,0.2091022,84288.0,84287.0,0.04587457]
[1742670580986,0.32774375,84288.0,84287.0,0.04587457]
[1742670587195,0.20908155,84288.0,84287.0,0.04587457]
[1742670587392,0.35038375,84288.0,84287.0,0.04587457]
[1742670588293,0.44368375,84288.0,84287.0,0.04587457]
[1742670590993,0.39618375,84288.0,84287.0,0.04587457]
[1742670591600,0.44168375,84288.0,84287.0,0.04587457]
[1742670595797,0.80248375,84288.0,84287.0,0.04587457]
[1742670600302,0.75698375,84288.0,84287.0,0.04587457]
[1742670602297,0.80208375,84288.0,84287.0,0.04587457]
[1742670607104,0.11928155,84288.0,84287.0,0.04587457]
[1742670607413,0.23172155,84288.0,84287.0,0.40735457]
[1742670607610,0.23176155,84288.0,84287.0,0.40735457]
[1742670607919,0.35042375,84288.0,84287.0,0.04655457]
[1742670608299,0.35042375,84288.0,84287.0,0.04587457]
[1742670610710,0.23798375,84288.0,84287.0,0.04587457]
[1742670611011,0.35042375,84288.0,84287.0,0.04587457]
[1742670612319,8e-05,84296.0,84288.0,0.0593307]
[1742670612515,0.02264887,84317.0,84308.0,0.118634]
[1742670612817,0.1718285,84320.0,84308.0,0.36164]
[1742670613119,0.1186237,84316.0,84308.0,0.36164]
[1742670613314,0.11863522,84309.0,84308.0,0.36164]
[1742670613513,0.00084,84309.0,84308.0,0.36164]
[1742670613816,0.18576715,84318.0,84308.0,0.36164]
[1742670613817,0.118612,84313.0,84308.0,0.36164]
[1742670614016,0.2380802,84313.0,84308.0,0.36164]
[1742670614217,0.1194682,84313.0,84308.0,0.36164]
[1742670614518,0.1186304,84311.0,84308.0,0.36164]
[1742670614815,0.1194704,84311.0,84308.0,0.36164]
[1742670615210,0.11860918,84310.0,84308.0,0.36164]
[1742670615409,0.11944918,84310.0,84308.0,0.36164]
[1742670616015,0.11944918,84310.0,84309.0,0.0467]
[1742670616317,0.11944918,84310.0,84309.0,0.04762]
[1742670616517,0.23808038,84310.0,84309.0,0.04762]
[1742670621510,0.11944918,84310.0,84300.0,0.0001779]
[1742670621719,0.1186607,84289.0,84288.0,0.0467]
[1742670621920,0.2320607,84289.0,84288.0,0.04738]
[1742670622129,0.2320607,84289.0,84288.0,0.0467]
[1742670622517,0.37340798,84289.0,84288.0,0.0467]
[1742670622714,0.46500798,84289.0,84288.0,0.0467]
[1742670628829,0.34634728,84289.0,84288.0,0.0467]
[1742670629124,0.14202728,84289.0,84288.0,0.0467]
[1742670629325,0.14202728,84289.0,84288.0,0.0473]
[1742670629527,0.11929059,84289.0,84288.0,0.1659622]
[1742670630235,0.11861059,84289.0,84288.0,0.1659622]
[1742670630718,0.0001779,84297.0,84289.0,0.1186596]
[1742670630920,8e-05,84293.0,84289.0,0.1192596]
[1742670631322,0.00072,84293.0,84290.0,0.0457]
[1742670631521,0.00072,84293.0,84290.0,0.0463]
[1742670631723,0.11864014,84292.0,84290.0,0.0463]
[1742670632131,0.11932014,84292.0,84290.0,0.0463]
[1742670632633,0.11864014,84292.0,84291.0,0.0475]
[1742670632830,0.11924015,84292.0,84291.0,0.4089]
[1742670633333,0.11864014,84292.0,84291.0,0.0481]
[1742670633536,0.11924015,84292.0,84291.0,0.4089]
[1742670633730,0.11864014,84292.0,84291.0,0.4089]
[1742670633929,0.11864014,84292.0,84291.0,0.5275579]
[1742670634127,0.11864014,84292.0,84291.0,0.4089]
[1742670636337,0.11864014,84292.0,84291.0,0.5275579]
[1742670637243,8e-05,84293.0,84292.0,0.1186565]
[1742670637534,0.0001779,84297.0,84296.0,0.1186509]
[1742670637740,0.0001779,84297.0,84296.0,0.5927309]
[1742670638132,0.0001779,84297.0,84296.0,0.6859309]
[1742670638939,0.0001779,84297.0,84296.0,0.6879309]
[1742670640339,0.0001779,84297.0,84296.0,0.6909309]
[1742670641136,0.0001779,84297.0,84296.0,1.1076309]
[1742670648030,0.0001779,84297.0,84296.0,0.7468309]
[1742670648242,0.0001779,84297.0,84296.0,1.4684309]
[1742670648645,0.0001779,84297.0,84296.0,0.7468309]
[1742670648843,0.0001779,84297.0,84296.0,1.4684309]
[1742670655241,0.0001779,84297.0,84296.0,0.7468309]
[1742670655442,0.0001779,84297.0,84296.0,1.4684309]
[1742670656336,0.0001779,84297.0,84296.0,0.7468309]
[1742670656532,0.0001779,84297.0,84296.0,1.4684309]
[1742670660750,0.0001779,84297.0,84296.0,1.4681909]
[1742670665151,0.0001779,84297.0,84296.0,0.7465909]
[1742670665354,0.0001779,84297.0,84296.0,1.4681909]
[1742670675154,0.0485779,84297.0,84296.0,1.4681909]
[1742670677161,0.0485779,84297.0,84296.0,1.4699109]
[1742670680551,0.0485779,84297.0,84296.0,0.7483109]
[1742670680757,0.0485779,84297.0,84296.0,1.4699109]
[1742670682961,0.0485779,84297.0,84296.0,0.7483109]
[1742670683157,0.0485779,84297.0,84296.0,1.4699109]
[1742670685167,0.0485779,84297.0,84296.0,0.7483109]
[1742670685472,0.0485779,84297.0,84296.0,1.4699109]
[1742670700176,0.0485779,84297.0,84296.0,0.7483109]
[1742670700375,0.0485779,84297.0,84296.0,1.4699109]
[1742670705180,0.0485779,84297.0,84296.0,0.7483109]
[1742670705373,0.0485779,84297.0,84296.0,1.4699109]
[1742670706071,0.0485779,84297.0,84296.0,0.7483109]
[1742670706277,0.0485779,84297.0,84296.0,1.4699109]
[1742670706683,0.0485779,84297.0,84296.0,0.7483109]
[1742670706883,0.0485779,84297.0,84296.0,1.4699109]
[1742670716790,0.0485779,84297.0,84296.0,0.7483109]
[1742670716990,0.0485779,84297.0,84296.0,1.4699109]
[1742670722196,0.0485779,84297.0,84296.0,0.7483109]
[1742670722400,0.0485779,84297.0,84296.0,1.4699109]
[1742670727089,0.0485779,84297.0,84296.0,1.7547714]
[1742670730301,0.0485779,84297.0,84296.0,1.4699109]
[1742670731398,0.0485779,84297.0,84296.0,1.3575109]
[1742670731596,0.0485779,84297.0,84296.0,1.2643109]
[1742670731597,0.16720678,84297.0,84296.0,1.2643109]
[1742670731993,0.21350678,84297.0,84296.0,1.2643109]
[1742670732195,0.21410679,84297.0,84296.0,1.2643109]
[1742670732396,0.21350678,84297.0,84296.0,1.2643109]
[1742670732596,0.21414678,84297.0,84296.0,1.2643109]
[1742670732797,0.21350678,84297.0,84296.0,1.3119109]
[1742670732997,0.21350678,84297.0,84296.0,1.3099109]
[1742670733190,0.21350678,84297.0,84296.0,1.3119109]
[1742670733391,0.21350678,84297.0,84296.0,1.3089109]
[1742670733594,0.21350678,84297.0,84296.0,0.9511109]
[1742670733793,0.21350678,84297.0,84296.0,0.9501109]
[1742670733993,0.21410679,84297.0,84296.0,0.9501109]
[1742670734204,0.21350678,84297.0,84296.0,0.9957109]
[1742670734392,0.21350678,84297.0,84296.0,0.9967109]
[1742670735503,0.21350678,84297.0,84296.0,1.01571415]
[1742670740204,0.21350678,84297.0,84296.0,1.01471415]
[1742670740400,0.21350678,84297.0,84296.0,1.01571415]
[1742670741007,0.21350678,84297.0,84296.0,1.01471415]
[1742670741196,0.21350678,84297.0,84296.0,1.01571415]
[1742670745191,0.21350678,84297.0,84296.0,0.65491415]
[1742670745396,0.21410679,84297.0,84296.0,1.01571415]
[1742670745701,0.21350678,84297.0,84296.0,1.01571415]
[1742670745909,0.0485779,84297.0,84296.0,1.06431415]
[1742670746399,0.0973779,84297.0,84296.0,1.06431415]
[1742670749905,0.0973779,84297.0,84296.0,1.06331415]
[1742670750105,0.0973779,84297.0,84296.0,1.06431415]
[1742670751218,0.0973779,84297.0,84296.0,1.06631415]
[1742670751515,0.0973779,84297.0,84296.0,1.06731415]
[1742670751905,0.0973779,84297.0,84296.0,1.06631415]
[1742670754216,0.0973779,84297.0,84296.0,1.06431415]
[1742670754411,0.0973779,84297.0,84296.0,1.06631415]
[1742670755216,0.0973779,84297.0,84296.0,0.64961415]
[1742670757707,0.0973779,84297.0,84296.0,0.64761415]
[1742670757914,0.0973779,84297.0,84296.0,0.64961415]
[1742670758621,0.0973779,84297.0,84296.0,1.01041415]
[1742670759018,0.0973779,84297.0,84296.0,0.28881415]
[1742670759323,0.0973779,84297.0,84296.0,1.01041415]
[1742670759922,0.0973779,84297.0,84296.0,1.00841415]
[1742670760222,0.0973779,84297.0,84296.0,1.01041415]
[1742670763827,0.0973779,84297.0,84296.0,1.00941415]
[1742670772830,0.0973779,84297.0,84296.0,1.12177415]
[1742670775423,0.0973779,84297.0,84296.0,1.11977415]
[1742670775721,0.0973779,84297.0,84296.0,1.12077415]
[1742670775924,0.0973779,84297.0,84296.0,1.11977415]
[1742670776126,0.0973779,84297.0,84296.0,1.12077415]
[1742670776326,0.0973779,84297.0,84296.0,0.75997415]
[1742670776929,0.0973779,84297.0,84296.0,0.39917415]
[1742670777231,0.0973779,84297.0,84296.0,0.75997415]
[1742670778233,0.0973779,84297.0,84296.0,0.75897415]
[1742670778430,0.0973779,84297.0,84296.0,0.75997415]
[1742670779317,0.0973779,84297.0,84296.0,0.39817415]
[1742670779518,0.0973779,84297.0,84296.0,0.75897415]
[1742670781035,0.2160274,84297.0,84296.0,0.46036]
[1742670781333,0.21668678,84297.0,84296.0,0.46036]
[1742670781632,0.26468678,84297.0,84296.0,0.45936]
[1742670782423,0.26468678,84297.0,84296.0,0.5780109]
[1742670782620,0.26468678,84297.0,84296.0,0.45936]
[1742670784230,0.26468678,84297.0,84296.0,0.5780109]
[1742670784530,0.21668678,84297.0,84296.0,0.5780109]
[1742670788527,0.21668678,84297.0,84296.0,0.45936]
[1742670788830,0.21668678,84297.0,84296.0,0.5780109]
[1742670801236,0.21668678,84297.0,84296.0,0.2172109]
[1742670801435,0.21668678,84297.0,84296.0,0.5780109]
[1742670806854,0.21668678,84297.0,84296.0,0.2172109]
[1742670807055,0.21668678,84297.0,84296.0,0.5780109]
[1742670808561,0.21668678,84297.0,84296.0,0.2172109]
[1742670808860,0.21668678,84297.0,84296.0,0.5780109]
[1742670815464,0.21668678,84297.0,84296.0,0.5820109]
[1742670816160,0.21668678,84297.0,84296.0,0.5800109]
[1742670816861,0.21668678,84297.0,84296.0,0.5790109]
[1742670820152,0.21668678,84297.0,84296.0,0.2182109]
[1742670820356,0.21668678,84297.0,84296.0,0.5790109]
[1742670820563,0.21600678,84297.0,84296.0,0.5790109]
[1742670821664,0.21600678,84297.0,84296.0,0.2182109]
[1742670821871,0.21668678,84297.0,84296.0,0.5790109]
[1742670822162,0.21600678,84297.0,84296.0,0.5790109]
[1742670826362,0.21600678,84297.0,84296.0,0.2182109]
[1742670826562,0.21660679,84297.0,84296.0,0.2182109]
[1742670826869,0.21660679,84297.0,84296.0,0.5790109]
[1742670827067,0.21600678,84297.0,84296.0,0.5790109]
[1742670830964,0.21668678,84297.0,84296.0,0.5790109]
[1742670831464,0.21600678,84297.0,84296.0,0.5790109]
[1742670831971,0.0001779,84297.0,84296.0,0.5790109]
[1742670832276,0.0001779,84297.0,84296.0,0.9957109]
[1742670833470,0.0001779,84297.0,84296.0,1.01078133]
[1742670835478,0.0001779,84297.0,84296.0,0.9957109]
[1742670835775,0.0001779,84297.0,84296.0,1.3565109]
[1742670838180,0.0479779,84297.0,84296.0,1.3565109]
[1742670839783,0.0479779,84297.0,84296.0,0.6349109]
[1742670839972,0.0479779,84297.0,84296.0,1.3565109]
[1742670846884,0.0479779,84297.0,84296.0,0.6349109]
[1742670847077,0.0479779,84297.0,84296.0,1.3565109]
[1742670858685,0.16660678,84297.0,84296.0,1.23786]
[1742670858985,0.33205628,84297.0,84296.0,1.14166]
[1742670859292,0.33265629,84297.0,84296.0,1.14166]
[1742670859483,0.38075629,84297.0,84296.0,1.14166]
[1742670861191,0.38175629,84297.0,84296.0,0.72396]
[1742670861694,0.38175629,84297.0,84296.0,0.36316]
[1742670862091,0.38275629,84297.0,84296.0,0.36316]
[1742670877802,0.38275629,84297.0,84296.0,0.00236]
[1742670877998,0.33595629,84297.0,84296.0,0.36316]
[1742670880792,0.33495629,84297.0,84296.0,0.36316]
[1742670881107,0.33395629,84297.0,84296.0,0.36316]
[1742670881696,0.33495629,84297.0,84296.0,0.36316]
[1742670911030,0.44775629,84297.0,84296.0,0.36316]
[1742670920425,0.44775629,84297.0,84296.0,0.41286]
[1742670922839,0.44775629,84297.0,84296.0,0.05206]
[1742670923046,0.44775629,84297.0,84296.0,0.41222]
[1742670923240,0.44775629,84297.0,84296.0,0.41282]
[1742670924854,0.12040679,84297.0,84296.0,0.5314709]
[1742670925055,0.11980678,84297.0,84296.0,0.5314709]
[1742670925350,0.11980678,84297.0,84296.0,0.41282]
[1742670925552,0.23905629,84297.0,84296.0,0.45962]
[1742670925739,0.33715629,84297.0,84296.0,0.45962]
[1742670932058,0.33715629,84297.0,84289.0,8e-05]
[1742670932059,0.0593282,84293.0,84289.0,8e-05]
[1742670932246,0.1186593,84290.0,84289.0,0.00072]
[1742670932451,0.5936593,84290.0,84289.0,0.00072]
[1742670932851,0.71228818,84290.0,84289.0,0.00064]
[1742670933452,0.71228818,84290.0,84287.0,0.00047457]
[1742670933453,0.0593303,84289.0,84283.0,8e-05]
[1742670933658,0.1186678,84284.0,84283.0,0.00076]
[1742670933855,0.2319878,84284.0,84283.0,8e-05]
[1742670934053,0.23294781,84284.0,84283.0,8e-05]
[1742670934358,0.118672,84281.0,84278.0,0.04778]
[1742670934566,0.48043201,84281.0,84278.0,0.04778]
[1742670935063,0.59908341,84281.0,84278.0,0.0477]
[1742670935262,0.59908341,84281.0,84279.0,0.0914]
[1742670935656,0.59908341,84281.0,84280.0,0.0915779]
[1742670936960,0.59908341,84281.0,84280.0,0.0955779]
[1742670937155,0.59908341,84281.0,84280.0,0.0995779]
[1742670937355,0.59908341,84281.0,84280.0,0.0081779]
[1742670937550,0.0593381,84278.0,84267.0,0.4167]
[1742670937757,0.1186847,84272.0,84271.0,0.00111466]
[1742670937956,0.11964471,84272.0,84271.0,0.00119466]
[1742670938250,0.23829611,84272.0,84271.0,0.00119466]
[1742670938662,0.23829611,84272.0,84271.0,0.00047466]
[1742670939359,0.24715949,84272.0,84271.0,0.00047466]
[1742670939573,0.24715949,84272.0,84271.0,0.00647466]
[1742670939762,0.24715949,84272.0,84271.0,0.01247466]
[1742670940157,0.24715949,84272.0,84271.0,0.00647466]
[1742670940370,0.24715949,84272.0,84271.0,0.10577466]
[1742670941156,0.24715949,84272.0,84271.0,0.09977466]
[1742670941355,0.24815949,84272.0,84271.0,0.10477466]
[1742670942065,0.23929611,84272.0,84271.0,0.10477466]
[1742670944154,0.33089611,84272.0,84271.0,0.10477466]
[1742670944759,0.69169611,84272.0,84271.0,0.10573466]
[1742670945067,0.69169611,84272.0,84271.0,0.10477466]
[1742670947869,0.69169611,84272.0,84271.0,0.10573466]
[1742670948072,0.69169611,84272.0,84271.0,0.10477466]
[1742670951968,0.69169611,84272.0,84271.0,0.10537466]
[1742670952370,0.69169611,84272.0,84271.0,0.10477466]
[1742670952668,0.69169611,84272.0,84271.0,0.10573466]
[1742670952869,0.69169611,84272.0,84271.0,0.10477466]
[1742670953663,0.69169611,84272.0,84271.0,0.10545466]
[1742670954067,0.57301141,84272.0,84271.0,0.22414076]
[1742670954273,0.68633141,84272.0,84271.0,0.10545466]
[1742670954474,0.68633141,84272.0,84271.0,0.10477466]
[1742670954679,0.80501611,84272.0,84271.0,0.10477466]
[1742670954878,0.68633141,84272.0,84271.0,0.10541466]
[1742670955064,0.68633141,84272.0,84271.0,0.10477466]
[1742670955374,0.80501611,84272.0,84271.0,0.10477466]
[1742670959173,0.80501611,84272.0,84271.0,0.10537466]
[1742670961875,0.80501611,84272.0,84271.0,0.10477466]
[1742670962076,0.68633141,84272.0,84271.0,0.10477466]
[1742670962266,0.80501611,84272.0,84271.0,0.10477466]
[1742670962471,0.80501611,84272.0,84271.0,0.10541466]
[1742670962873,0.80501611,84272.0,84271.0,0.10477466]
[1742670967584,0.80501611,84272.0,84271.0,0.10541466]
[1742670970579,0.80501611,84272.0,84271.0,0.10477466]
[1742670979782,0.44421611,84272.0,84271.0,0.10477466]
[1742670980297,0.44421611,84272.0,84271.0,0.10545466]
[1742670980487,0.44421611,84272.0,84271.0,0.10477466]
[1742670980693,0.44421611,84272.0,84271.0,0.10581466]
[1742670980894,0.44421611,84272.0,84271.0,0.10477466]
[1742670981887,0.44421611,84272.0,84271.0,0.10545466]
[1742670983287,0.80501611,84272.0,84271.0,0.10477466]
[1742670985896,0.80501611,84272.0,84271.0,0.10537466]
[1742670987302,0.80501611,84272.0,84271.0,0.10477466]
[1742670988091,0.80501611,84272.0,84271.0,0.10537466]
[1742670992715,0.80501611,84272.0,84271.0,0.10477466]
[1742670993118,0.80501611,84272.0,84271.0,0.10537466]
[1742670994008,0.80501611,84272.0,84271.0,0.10477466]
[1742670994416,0.80501611,84272.0,84271.0,0.10577466]
[1742670994715,0.80501611,84272.0,84271.0,0.10477466]
[1742670996617,0.80501611,84272.0,84271.0,0.10537466]
[1742670997020,0.68633141,84272.0,84271.0,0.10537466]
[1742670997219,0.48141141,84272.0,84271.0,0.22346076]
[1742670997518,0.48141141,84272.0,84271.0,0.22442076]
[1742670997909,0.48141141,84272.0,84271.0,0.10573466]
[1742670998115,0.48141141,84272.0,84271.0,0.22442076]
[1742670999216,0.60009611,84272.0,84271.0,0.10573466]
[1742671000019,0.23929611,84272.0,84271.0,0.10573466]
[1742671000221,0.23929611,84272.0,84271.0,0.22442076]
[1742671001222,0.28919611,84272.0,84271.0,0.22442076]
[1742671004716,0.17051141,84272.0,84271.0,0.22442076]
[1742671015824,0.21951141,84272.0,84271.0,0.22442076]
[1742671027530,0.12061141,84272.0,84271.0,0.22442076]
[1742671027736,1e-08,84272.0,84271.0,0.22442076]
[1742671029836,1e-08,84272.0,84271.0,0.23839403]